bitfinex/quotes_SOLUSD_20230701
["timestamp","ask_amount","ask_price","bid_price","bid_amount"]
[1688219177451,22.98,18.407,18.391,157.5028]
[1688219177644,55.0,18.406,18.396,22.992]
[1688219177849,22.984,18.404,18.396,22.992]
[1688219179054,55.0,18.406,18.396,22.992]
[1688219179238,55.0,18.407,18.396,22.992]
[1688219179552,22.982,18.406,18.396,22.992]
[1688219187336,22.982,18.406,18.394,22.995]
[1688219187541,55.0,18.405,18.392,22.997]
[1688219187744,22.987,18.402,18.392,22.997]
[1688219188452,22.991,18.398,18.39,23.0]
[1688219188635,22.997,18.394,18.386,23.006]
[1688219190651,55.0,18.393,18.381,94.977]
[1688219190855,77.998,18.393,18.382,23.011]
[1688219201070,55.0,18.393,18.382,23.011]
[1688219201255,22.996,18.395,18.382,23.011]
[1688219201256,55.0,18.394,18.382,23.011]
[1688219201452,77.996,18.394,18.382,23.011]
[1688219203876,24.43,18.39,18.37,132.843]
[1688219204068,24.43,18.39,18.371,59.277]
[1688219204069,23.009,18.384,18.371,59.277]
[1688219204456,23.011,18.382,18.374,23.02]
[1688219207968,23.011,18.382,18.37,92.1712]
[1688219209884,23.011,18.382,18.374,23.02]
[1688219210784,23.011,18.382,18.37,92.1712]
[1688219210981,55.0,18.381,18.373,23.022]
[1688219211180,23.015,18.38,18.373,23.022]
[1688219211367,55.0,18.379,18.371,23.024]
[1688219211568,78.015,18.379,18.37,92.1712]
[1688219212277,78.015,18.379,18.363,37.38719918]
[1688219212487,78.015,18.379,18.364,75.0]
[1688219212785,78.015,18.379,18.37,23.026]
[1688219213885,23.011,18.383,18.37,23.026]
[1688219214182,59.277,18.385,18.37,23.026]
[1688219214974,55.0,18.384,18.37,23.026]
[1688219215179,23.011,18.382,18.37,23.026]
[1688219215487,55.0,18.381,18.37,23.026]
[1688219215984,78.013,18.381,18.37,23.026]
[1688219216178,23.011,18.383,18.37,23.026]
[1688219216385,78.011,18.382,18.37,23.026]
[1688219218691,55.0,18.382,18.37,23.026]
[1688219218903,23.006,18.387,18.37,47.586]
[1688219219195,23.006,18.387,18.371,55.0]
[1688219219374,50.317103,18.387,18.375,23.019]
[1688219219982,55.0,18.386,18.375,23.019]
[1688219220178,78.006,18.386,18.375,23.019]
[1688219220688,23.006,18.386,18.375,23.019]
[1688219221193,27.311103,18.387,18.375,23.019]
[1688219221492,23.0,18.392,18.383,23.009]
[1688219222590,47.45,18.392,18.38,24.45]
[1688219222783,47.45,18.392,18.378,59.254]
[1688219222982,47.45,18.392,18.379,20.0]
[1688219223791,47.45,18.392,18.382,23.011]
[1688219224092,78.0,18.391,18.382,23.011]
[1688219224488,24.45,18.392,18.382,23.011]
[1688219224792,127.941,18.409,18.382,23.011]
[1688219224977,20.0,18.399,18.383,55.0]
[1688219225178,42.991,18.399,18.387,23.004]
[1688219225479,22.995,18.395,18.387,23.004]
[1688219226071,77.996,18.394,18.385,23.006]
[1688219226274,77.996,18.394,18.386,23.005]
[1688219226697,55.0,18.394,18.386,23.005]
[1688219226874,22.995,18.396,18.386,23.005]
[1688219227077,49.589596,18.398,18.386,23.005]
[1688219227377,55.0,18.397,18.386,23.005]
[1688219227790,77.993,18.397,18.386,23.005]
[1688219230496,22.993,18.397,18.386,23.005]
[1688219230899,26.597596,18.398,18.386,23.005]
[1688219231391,26.597596,18.398,18.387,20.0]
[1688219231577,22.989,18.401,18.39,23.001]
[1688219232396,50.796887,18.401,18.39,23.001]
[1688219232698,22.985,18.403,18.39,82.217]
[1688219233989,55.0,18.402,18.39,82.217]
[1688219234196,22.988,18.401,18.39,82.217]
[1688219234877,55.0,18.4,18.39,82.217]
[1688219237786,55.0,18.401,18.39,82.217]
[1688219238495,59.162,18.404,18.39,82.217]
[1688219238702,26.89543863,18.408,18.39,82.217]
[1688219238703,22.981,18.406,18.39,82.217]
[1688219239413,26.895439,18.406,18.39,82.217]
[1688219239889,55.0,18.405,18.39,82.217]
[1688219241395,55.0,18.405,18.395,22.995]
[1688219241984,48.0,18.4,18.395,22.995]
[1688219245102,48.0,18.4,18.397,190.19]
[1688219248010,48.0,18.4,18.398,55.0]
[1688219248307,48.0,18.4,18.399,22.99]
[1688219249096,48.0,18.4,18.397,22.991]
[1688219249314,48.0,18.4,18.396,22.993]
[1688219262110,48.0,18.4,18.392,22.998]
[1688219265415,48.0,18.4,18.392,82.208]
[1688219269822,48.0,18.4,18.392,22.998]
[1688219272408,48.0,18.4,18.393,55.0]
[1688219272704,48.0,18.4,18.395,22.995]
[1688219282213,70.989,18.4,18.392,22.998]
[1688219282427,48.0,18.4,18.392,22.998]
[1688219282815,55.0,18.399,18.392,22.998]
[1688219284518,48.0,18.4,18.392,82.208]
[1688219285917,48.0,18.4,18.393,75.0]
[1688219286111,48.0,18.4,18.395,190.212]
[1688219286327,48.0,18.4,18.396,75.0]
[1688219286539,48.0,18.4,18.397,22.992]
[1688219286829,48.0,18.4,18.398,20.0]
[1688219287132,48.0,18.4,18.399,82.177]
[1688219287527,48.0,18.4,18.399,102.177]
[1688219289132,48.0,18.4,18.399,22.99]
[1688219289631,48.0,18.4,18.399,42.99]
[1688219289928,48.0,18.4,18.387,32.21940514]
[1688219290138,48.0,18.4,18.397,22.992]
[1688219297544,48.0,18.4,18.393,22.996]
[1688219317657,48.0,18.4,18.395,82.192]
[1688219318751,48.0,18.4,18.395,22.994]
[1688219340474,48.0,18.4,18.395,22.995]
[1688219341767,55.0,18.399,18.384,59.233]
[1688219341964,55.0,18.399,18.386,23.005]
[1688219342167,55.0,18.399,18.387,20.0]
[1688219342362,77.991,18.399,18.39,23.0]
[1688219342891,77.991,18.399,18.382,27.58767989]
[1688219343180,77.991,18.399,18.382,23.01]
[1688219344076,87.00582484,18.399,18.382,23.01]
[1688219344582,77.991,18.399,18.382,23.01]
[1688219344783,124.01575224,18.399,18.382,23.01]
[1688219344969,22.997,18.394,18.382,23.01]
[1688219345169,59.198,18.396,18.382,23.01]
[1688219345170,23.0,18.391,18.382,23.01]
[1688219345568,55.0,18.39,18.382,23.01]
[1688219348073,55.0,18.39,18.374,108.14]
[1688219348269,102.612,18.39,18.375,59.262]
[1688219348464,43.004,18.389,18.378,23.015]
[1688219348670,55.0,18.388,18.378,23.015]
[1688219348869,23.006,18.387,18.378,23.015]
[1688219349177,55.0,18.386,18.378,23.015]
[1688219349366,23.008,18.385,18.378,23.015]
[1688219349567,55.0,18.384,18.378,23.015]
[1688219349888,55.0,18.384,18.377,23.017]
[1688219350178,55.0,18.384,18.378,23.016]
[1688219350482,55.0,18.385,18.378,23.016]
[1688219350862,55.0,18.385,18.376,23.017]
[1688219351986,78.008,18.385,18.376,23.017]
[1688219354574,55.0,18.385,18.376,23.017]
[1688219354786,24.61,18.39,18.376,190.409]
[1688219354969,55.0,18.391,18.377,75.0]
[1688219355172,86.24073786,18.396,18.381,23.012]
[1688219355869,24.58,18.39,18.381,23.012]
[1688219356371,47.581,18.39,18.381,23.012]
[1688219356583,55.0,18.389,18.381,23.012]
[1688219356789,23.004,18.388,18.381,23.012]
[1688219356991,55.0,18.387,18.379,23.014]
[1688219357496,78.005,18.387,18.379,23.014]
[1688219358570,55.0,18.387,18.379,23.014]
[1688219358885,83.832,18.39,18.379,23.014]
[1688219358886,55.0,18.388,18.379,23.014]
[1688219359088,23.005,18.387,18.377,23.016]
[1688219359264,78.003,18.389,18.379,23.014]
[1688219359468,83.832,18.39,18.379,23.014]
[1688219359779,24.58,18.39,18.383,23.01]
[1688219360492,82.251,18.393,18.383,23.01]
[1688219360865,77.999,18.392,18.383,23.01]
[1688219361268,55.0,18.392,18.383,23.01]
[1688219361684,55.0,18.393,18.383,23.01]
[1688219364586,55.0,18.394,18.383,23.01]
[1688219365588,77.997,18.394,18.383,23.01]
[1688219367182,55.0,18.394,18.383,23.01]
[1688219367598,55.0,18.395,18.383,23.01]
[1688219368393,72.58,18.4,18.383,23.01]
[1688219368394,95.57,18.4,18.383,23.01]
[1688219368600,48.0,18.4,18.384,78.25977409]
[1688219368893,48.0,18.4,18.393,22.997]
[1688219369279,72.58,18.4,18.393,22.997]
[1688219369886,55.0,18.399,18.393,22.997]
[1688219372384,48.0,18.4,18.393,22.997]
[1688219378500,48.0,18.4,18.394,55.0]
[1688219378706,48.0,18.4,18.395,190.205]
[1688219379005,48.0,18.4,18.396,55.0]
[1688219379190,48.0,18.4,18.397,22.992]
[1688219379988,48.0,18.4,18.398,20.0]
[1688219380192,48.0,18.4,18.399,82.177]
[1688219380406,91.1163,18.418,18.399,157.177]
[1688219380705,91.1163,18.418,18.4,51.06463574]
[1688219381008,22.967,18.417,18.405,22.982]
[1688219381207,118.266302,18.418,18.405,22.982]
[1688219381791,118.266302,18.418,18.405,130.941]
[1688219382096,114.0833,18.418,18.405,22.982]
[1688219383909,55.0,18.417,18.405,22.982]
[1688219384793,77.968,18.417,18.405,22.982]
[1688219386008,91.1163,18.418,18.405,22.982]
[1688219386193,49.75795618,18.419,18.405,22.982]
[1688219386392,55.0,18.418,18.405,22.982]
[1688219386587,91.1169,18.424,18.405,130.941]
[1688219386795,42.96,18.423,18.411,22.975]
[1688219387191,55.0,18.42,18.411,22.975]
[1688219387387,20.0,18.419,18.411,22.975]
[1688219388306,22.966,18.418,18.409,22.977]
[1688219391214,20.0,18.419,18.409,22.977]
[1688219391603,42.965,18.419,18.409,22.977]
[1688219395217,20.0,18.419,18.409,22.977]
[1688219396824,55.0,18.418,18.409,22.977]
[1688219399420,77.966,18.418,18.409,22.977]
[1688219399840,77.966,18.418,18.401,97.0166]
[1688219400122,137.092,18.418,18.401,97.0166]
[1688219400717,77.966,18.418,18.405,22.982]
[1688219404127,77.966,18.418,18.399,107.993]
[1688219404420,77.966,18.418,18.405,22.982]
[1688219405012,77.966,18.418,18.402,22.986]
[1688219405222,9.01482484,18.417,18.402,22.986]
[1688219405423,22.973,18.413,18.402,22.986]
[1688219405836,55.0,18.412,18.402,22.986]
[1688219406020,77.974,18.412,18.402,22.986]
[1688219407809,77.974,18.412,18.393,10.83719922]
[1688219407810,22.98,18.407,18.393,59.206]
[1688219408013,22.98,18.407,18.397,22.992]
[1688219408014,55.0,18.406,18.397,22.992]
[1688219408225,55.0,18.406,18.395,22.994]
[1688219408443,22.985,18.403,18.395,22.994]
[1688219408725,55.0,18.402,18.395,22.994]
[1688219409109,77.987,18.402,18.395,22.994]
[1688219410540,77.987,18.402,18.394,22.996]
[1688219410831,55.0,18.402,18.395,22.995]
[1688219411021,55.0,18.403,18.395,22.995]
[1688219411915,55.0,18.403,18.395,82.195]
[1688219412533,55.0,18.404,18.395,82.195]
[1688219413237,55.0,18.404,18.395,22.995]
[1688219414518,55.0,18.405,18.395,22.995]
[1688219414716,22.981,18.407,18.395,22.995]
[1688219414932,22.981,18.406,18.395,22.995]
[1688219415436,82.191,18.406,18.395,22.995]
[1688219415927,55.0,18.405,18.395,22.995]
[1688219416734,77.983,18.405,18.395,22.995]
[1688219417136,86.40899343,18.412,18.395,22.995]
[1688219417336,86.40899343,18.412,18.396,3.95053742]
[1688219417535,22.977,18.41,18.4,22.988]
[1688219417726,59.136,18.415,18.4,22.988]
[1688219417925,20.0,18.41,18.4,22.988]
[1688219418125,20.0,18.413,18.4,22.988]
[1688219418522,21.752733,18.41,18.4,22.988]
[1688219418721,20.0,18.409,18.4,22.988]
[1688219419933,21.752733,18.41,18.4,22.988]
[1688219420134,22.971,18.415,18.401,75.0]
[1688219420337,90.3965,18.419,18.405,22.982]
[1688219420648,117.43038834,18.419,18.405,22.982]
[1688219421530,199.56438834,18.419,18.405,22.982]
[1688219421742,172.5305,18.419,18.405,22.982]
[1688219423323,22.969,18.416,18.405,22.982]
[1688219424132,22.968,18.417,18.405,22.982]
[1688219425138,82.134,18.419,18.405,22.982]
[1688219425341,59.168,18.419,18.409,22.976]
[1688219426944,82.133,18.419,18.409,22.976]
[1688219428046,82.133,18.419,18.407,22.979]
[1688219428047,55.0,18.418,18.407,22.979]
[1688219428234,22.97,18.415,18.407,22.979]
[1688219429658,55.0,18.418,18.407,22.979]
[1688219429838,22.968,18.417,18.407,22.979]
[1688219431655,55.0,18.416,18.407,22.979]
[1688219431952,22.97,18.415,18.407,22.979]
[1688219432148,59.168,18.419,18.407,22.979]
[1688219432334,22.969,18.417,18.407,22.979]
[1688219432535,55.0,18.416,18.407,22.979]
[1688219432736,77.969,18.416,18.407,22.979]
[1688219433054,77.969,18.416,18.401,118.6333]
[1688219433345,137.102,18.416,18.403,22.984]
[1688219434440,77.969,18.416,18.403,22.984]
[1688219436355,77.469,18.416,18.403,22.984]
[1688219438853,76.969,18.416,18.403,22.984]
[1688219442651,103.6293873,18.416,18.403,22.984]
[1688219445845,20.0,18.415,18.399,22.989]
[1688219446048,22.976,18.411,18.4,3.49291694]
[1688219446355,22.98,18.407,18.399,22.989]
[1688219446759,55.0,18.406,18.399,22.989]
[1688219447063,22.981,18.406,18.399,22.989]
[1688219447560,47.631,18.406,18.399,22.989]
[1688219449953,47.631,18.406,18.397,22.991]
[1688219453986,24.65,18.406,18.397,22.991]
[1688219454270,59.136,18.415,18.398,3.38022378]
[1688219454473,22.979,18.409,18.4,22.988]
[1688219457959,55.0,18.408,18.397,22.992]
[1688219458167,22.983,18.405,18.397,22.992]
[1688219460467,22.992,18.406,18.397,22.992]
[1688219462181,45.974,18.406,18.397,22.992]
[1688219464584,55.0,18.405,18.397,22.992]
[1688219465483,55.0,18.405,18.397,20.492]
[1688219466681,45.974,18.406,18.397,20.492]
[1688219467064,22.977,18.41,18.397,20.492]
[1688219467265,75.0,18.409,18.398,6.78054009]
[1688219467568,75.0,18.409,18.401,22.987]
[1688219467770,96.754375,18.409,18.401,22.987]
[1688219468165,119.732375,18.409,18.401,22.987]
[1688219468684,64.732375,18.409,18.401,22.987]
[1688219469973,55.0,18.408,18.399,22.989]
[1688219470171,22.982,18.406,18.399,22.989]
[1688219471069,55.0,18.408,18.399,22.989]
[1688219471284,77.98,18.408,18.399,22.989]
[1688219472581,77.98,18.408,18.393,10.83719922]
[1688219472779,77.98,18.408,18.398,22.991]
[1688219481368,77.98,18.408,18.393,2.77297055]
[1688219481576,77.98,18.408,18.393,25.76997055]
[1688219481887,86.99482484,18.408,18.393,25.76997055]
[1688219482186,9.01482484,18.407,18.393,2.77297055]
[1688219482392,82.16,18.403,18.392,7.725628]
[1688219482593,55.0,18.402,18.392,7.725628]
[1688219482775,22.99,18.399,18.391,22.999]
[1688219482980,55.0,18.398,18.391,22.999]
[1688219483189,77.991,18.398,18.389,23.001]
[1688219483388,77.991,18.398,18.39,20.0]
[1688219483590,77.991,18.398,18.39,43.0]
[1688219483889,77.991,18.398,18.39,20.0]
[1688219484088,77.991,18.398,18.386,20.0]
[1688219484290,77.991,18.398,18.387,4.81360542]
[1688219484891,55.0,18.398,18.389,23.002]
[1688219485097,55.0,18.398,18.39,20.0]
[1688219485392,55.0,18.399,18.392,22.998]
[1688219486091,55.0,18.4,18.392,22.998]
[1688219486476,23.002,18.401,18.392,22.998]
[1688219486678,22.981,18.407,18.393,5.8524168]
[1688219486876,22.981,18.407,18.396,22.993]
[1688219487994,55.0,18.406,18.396,22.993]
[1688219488198,77.982,18.406,18.396,22.993]
[1688219490795,77.982,18.406,18.392,22.998]
[1688219491099,77.982,18.406,18.393,2.75045212]
[1688219491791,175.8296,18.406,18.392,22.998]
[1688219494892,120.8296,18.406,18.392,22.998]
[1688219495094,120.8296,18.406,18.393,3.26400194]
[1688219495298,22.982,18.406,18.396,22.994]
[1688219495980,22.982,18.406,18.394,22.995]
[1688219496184,22.982,18.406,18.391,8.83768343]
[1688219497404,55.0,18.405,18.391,8.83768343]
[1688219497597,22.987,18.402,18.395,22.994]
[1688219497800,55.0,18.401,18.395,22.994]
[1688219497999,77.988,18.401,18.39,20.0]
[1688219498203,77.988,18.401,18.392,22.998]
[1688219499104,55.0,18.401,18.392,22.998]
[1688219502097,55.0,18.402,18.392,22.998]
[1688219507408,77.986,18.402,18.392,22.998]
[1688219512801,77.986,18.402,18.393,2.13248269]
[1688219513001,77.986,18.402,18.394,22.996]
[1688219513806,27.12396552,18.406,18.394,22.996]
[1688219514008,27.12396552,18.406,18.395,3.36148371]
[1688219514308,22.982,18.406,18.396,22.992]
[1688219514901,22.982,18.406,18.395,2.84830898]
[1688219515109,55.0,18.405,18.395,2.84830898]
[1688219515408,22.986,18.402,18.394,22.996]
[1688219515594,55.0,18.401,18.394,22.996]
[1688219515794,77.988,18.401,18.392,22.998]
[1688219517709,47.507494,18.407,18.392,22.998]
[1688219517916,55.0,18.406,18.393,10.43347674]
[1688219518210,77.981,18.406,18.397,22.992]
[1688219524901,20.0,18.409,18.397,22.992]
[1688219525105,22.977,18.409,18.398,7.08765914]
[1688219525418,22.977,18.409,18.401,22.987]
[1688219525613,26.71013365,18.413,18.401,82.168]
[1688219525813,398.5,18.418,18.401,82.168]
[1688219526124,22.977,18.413,18.401,82.168]
[1688219526303,93.2972,18.419,18.401,82.168]
[1688219526615,22.971,18.414,18.401,82.168]
[1688219528014,55.0,18.413,18.401,82.168]
[1688219528213,77.973,18.413,18.401,82.168]
[1688219529006,26.87809412,18.419,18.401,82.168]
[1688219529007,22.971,18.415,18.401,82.168]
[1688219529206,55.0,18.414,18.401,82.168]
[1688219531012,77.97,18.416,18.405,22.982]
[1688219531210,55.0,18.415,18.405,22.982]
[1688219532514,22.97,18.416,18.405,22.982]
[1688219533023,50.212207,18.416,18.405,22.982]
[1688219535426,55.0,18.415,18.405,22.982]
[1688219542129,27.242207,18.416,18.405,22.982]
[1688219545638,50.211207,18.416,18.405,22.982]
[1688219547334,77.971,18.415,18.405,22.982]
[1688219551637,55.0,18.415,18.405,22.982]
[1688219553316,27.242207,18.416,18.405,22.982]
[1688219553937,83.691,18.43,18.41,24.6]
[1688219554118,22.959,18.424,18.415,22.969]
[1688219554438,83.691,18.43,18.415,22.969]
[1688219554439,22.958,18.425,18.415,22.969]
[1688219555434,55.0,18.424,18.415,22.969]
[1688219555819,77.959,18.424,18.415,22.969]
[1688219558633,83.691,18.425,18.415,22.969]
[1688219558931,59.097,18.428,18.415,22.969]
[1688219559938,22.959,18.424,18.415,22.969]
[1688219560236,55.0,18.423,18.415,22.969]
[1688219562028,77.96,18.423,18.415,22.969]
[1688219562840,55.0,18.423,18.415,22.969]
[1688219563336,77.96,18.423,18.407,93.7219]
[1688219563635,77.96,18.423,18.407,22.979]
[1688219563636,22.969,18.417,18.407,22.979]
[1688219563833,22.969,18.417,18.403,22.984]
[1688219564025,22.974,18.413,18.403,22.984]
[1688219564333,22.976,18.411,18.403,22.984]
[1688219564536,55.0,18.41,18.403,22.984]
[1688219565232,79.6,18.41,18.403,22.984]
[1688219565637,22.972,18.414,18.403,22.984]
[1688219565936,55.0,18.413,18.403,22.984]
[1688219568842,59.129,18.414,18.403,22.984]
[1688219569035,55.0,18.413,18.403,22.984]
[1688219570738,55.0,18.413,18.403,82.159]
[1688219570941,59.129,18.414,18.403,82.159]
[1688219571450,22.97,18.416,18.403,82.159]
[1688219571744,55.0,18.415,18.403,82.159]
[1688219574152,24.55,18.416,18.403,82.159]
[1688219574345,24.55,18.416,18.407,22.979]
[1688219575950,47.519,18.416,18.407,22.979]
[1688219576130,24.55,18.416,18.41,24.5]
[1688219576327,22.965,18.42,18.412,22.973]
[1688219576633,59.103,18.426,18.412,22.973]
[1688219576834,20.0,18.425,18.412,22.973]
[1688219577747,55.0,18.424,18.412,22.973]
[1688219577956,22.963,18.421,18.412,22.973]
[1688219578157,22.963,18.421,18.41,24.5]
[1688219578158,55.0,18.42,18.41,47.475]
[1688219578334,42.966,18.419,18.41,47.475]
[1688219580753,22.96,18.424,18.41,47.475]
[1688219580939,77.961,18.423,18.414,22.97]
[1688219581737,77.961,18.423,18.411,20.0]
[1688219581941,77.961,18.423,18.412,22.972]
[1688219585860,55.0,18.423,18.412,22.972]
[1688219588161,55.0,18.423,18.412,82.118]
[1688219588363,22.957,18.426,18.412,82.118]
[1688219588540,24.5,18.427,18.413,55.0]
[1688219588747,24.5,18.427,18.417,82.096]
[1688219589952,24.5,18.427,18.417,22.967]
[1688219590569,55.0,18.426,18.417,22.967]
[1688219590867,24.5,18.427,18.417,22.967]
[1688219591070,55.0,18.426,18.417,22.967]
[1688219591363,24.5,18.427,18.417,22.967]
[1688219592548,55.0,18.426,18.417,22.967]
[1688219593070,22.958,18.425,18.411,20.0]
[1688219593267,55.0,18.424,18.411,115.6263]
[1688219593857,55.0,18.424,18.411,20.0]
[1688219594356,55.0,18.424,18.417,22.967]
[1688219595370,47.456,18.427,18.417,22.967]
[1688219595557,55.0,18.426,18.417,22.967]
[1688219595752,77.957,18.426,18.415,22.969]
[1688219597876,24.6,18.42,18.411,22.974]
[1688219598075,22.967,18.418,18.4,24.6]
[1688219598461,55.0,18.417,18.4,24.6]
[1688219598761,22.973,18.413,18.404,22.983]
[1688219598963,59.126,18.418,18.404,22.983]
[1688219598964,77.974,18.412,18.404,22.983]
[1688219599567,24.6,18.413,18.404,22.983]
[1688219599762,22.969,18.416,18.404,22.983]
[1688219599971,55.0,18.415,18.404,22.983]
[1688219600171,22.967,18.418,18.404,22.983]
[1688219600373,24.6,18.416,18.404,22.983]
[1688219602277,47.569,18.416,18.404,22.983]
[1688219606597,47.569,18.416,18.405,55.0]
[1688219606771,22.969,18.416,18.408,22.978]
[1688219608159,77.967,18.418,18.408,22.978]
[1688219608360,55.0,18.418,18.408,22.978]
[1688219608567,22.963,18.421,18.408,22.978]
[1688219608782,22.963,18.421,18.409,85.83719922]
[1688219608974,22.963,18.421,18.412,22.973]
[1688219610988,85.8372,18.424,18.412,22.973]
[1688219611187,55.0,18.423,18.412,22.973]
[1688219611396,77.961,18.423,18.412,22.973]
[1688219615286,77.961,18.423,18.412,22.974]
[1688219616974,55.0,18.423,18.412,22.974]
[1688219617177,77.961,18.423,18.412,22.974]
[1688219618192,55.0,18.423,18.412,22.974]
[1688219618695,85.8372,18.424,18.412,22.974]
[1688219619991,55.0,18.423,18.412,22.974]
[1688219621991,77.96,18.423,18.412,22.974]
[1688219622300,55.0,18.423,18.412,22.974]
[1688219623998,77.96,18.423,18.412,22.974]
[1688219627115,77.96,18.423,18.407,90.3791]
[1688219627319,77.96,18.423,18.408,42.978]
[1688219638220,55.0,18.423,18.408,42.978]
[1688219644839,77.96,18.423,18.408,42.978]
[1688219648831,55.0,18.423,18.408,42.978]
[1688219649025,55.0,18.423,18.409,55.0]
[1688219649326,55.0,18.423,18.413,22.972]
[1688219650122,77.96,18.423,18.413,22.972]
[1688219652534,55.0,18.423,18.413,22.972]
[1688219652737,55.0,18.424,18.413,22.972]
[1688219653644,77.959,18.424,18.413,22.972]
[1688219655239,130.41278215,18.427,18.413,82.114]
[1688219655240,103.76,18.427,18.413,82.114]
[1688219655441,59.075,18.434,18.414,55.0]
[1688219655736,59.066,18.437,18.42,22.964]
[1688219655945,22.948,18.433,18.424,22.958]
[1688219656541,126.708,18.433,18.424,22.958]
[1688219657946,55.0,18.432,18.424,22.958]
[1688219658345,126.708,18.433,18.424,22.958]
[1688219659342,103.76,18.433,18.424,22.958]
[1688219659541,55.0,18.432,18.424,22.958]
[1688219660163,77.949,18.432,18.424,22.958]
[1688219661962,55.0,18.432,18.424,22.958]
[1688219662348,27.43754772,18.433,18.424,22.958]
[1688219662547,50.39554772,18.433,18.424,22.958]
[1688219662742,22.958,18.433,18.424,22.958]
[1688219664043,45.906,18.433,18.424,22.958]
[1688219664250,45.906,18.433,18.421,20.0]
[1688219664551,55.0,18.432,18.421,42.962]
[1688219665269,55.0,18.432,18.421,22.962]
[1688219665854,22.951,18.431,18.421,22.962]
[1688219666059,55.0,18.43,18.421,22.962]
[1688219666364,77.952,18.43,18.421,22.962]
[1688219667971,55.0,18.43,18.421,22.962]
[1688219668174,55.0,18.431,18.421,22.962]
[1688219668876,77.95,18.431,18.421,22.962]
[1688219669169,22.956,18.427,18.415,22.969]
[1688219669472,22.959,18.424,18.416,22.969]
[1688219669776,55.0,18.423,18.416,22.969]
[1688219669986,77.96,18.423,18.416,22.969]
[1688219670274,55.0,18.423,18.416,22.969]